fUSD/lending_fUSD_20240425
["ID","MTS","AMOUNT","RATE_DAILY","PERIOD"]
[323552148,1714083059843,-500.0,0.0001178,2]
[323552149,1714083059852,-500.0,0.0001178,2]
[323552150,1714083059861,-1209.68,0.0001178,2]
[323552151,1714083059872,-500.0,0.0001178,2]
[323552152,1714083059881,-500.0,0.0001178,2]
[323552153,1714083059890,-1814.87,0.0001178,2]
[323552154,1714083059901,-621.85,0.0001178,2]
[323552155,1714083059910,-795.86,0.0001178,2]
[323552156,1714083059919,-500.0,0.0001178,2]
[323552157,1714083059930,-662.59,0.0001178,2]
[323552158,1714083059939,-500.0,0.0001178,2]
[323552159,1714083059950,-1118.22,0.0001178,2]
[323552160,1714083059959,-500.0,0.0001178,2]
[323552161,1714083059969,-500.0,0.0001178,2]
[323552162,1714083059977,-910.33,0.0001178,2]
[323552163,1714083059987,-1434.45,0.0001178,2]
[323552164,1714083059996,-500.0,0.0001178,2]
[323552165,1714083060005,-500.0,0.0001178,2]
[323552166,1714083060014,-500.0,0.0001178,2]
[323552167,1714083060023,-916.26,0.0001178,2]
[323552168,1714083060032,-500.0,0.0001178,2]
[323552169,1714083060041,-751.22,0.0001178,2]
[323552170,1714083060051,-500.0,0.0001178,2]
[323552171,1714083060061,-500.0,0.0001178,2]
[323552172,1714083060072,-500.0,0.0001178,2]
[323552173,1714083060082,-500.0,0.0001178,2]
[323552174,1714083060091,-1425.63,0.0001178,2]
[323552175,1714083060100,-500.0,0.0001178,2]
[323552176,1714083060110,-500.0,0.0001178,2]
[323552177,1714083060119,-500.0,0.0001178,2]
[323552178,1714083060129,-1903.64,0.0001178,2]
[323552179,1714083060139,-500.0,0.0001178,2]
[323552180,1714083060149,-2167.88,0.0001178,2]
[323552181,1714083060158,-500.0,0.0001178,2]
[323552182,1714083060168,-1112.29,0.0001178,2]
[323552183,1714083060177,-500.0,0.0001178,2]
[323552184,1714083060186,-2109.73,0.0001178,2]
[323552185,1714083060195,-500.0,0.0001178,2]
[323552186,1714083060204,-500.0,0.0001178,2]
[323552187,1714083060214,-637.43,0.0001178,2]
[323552188,1714083060223,-500.0,0.0001178,2]
[323552189,1714083060232,-2205.63,0.0001178,2]
[323552190,1714083060242,-500.0,0.0001178,2]
[323552191,1714083060254,-1083.42,0.0001178,2]
[323552192,1714083060264,-1008.65,0.0001178,2]
[323552193,1714083060273,-582.99,0.0001178,2]
[323552194,1714083060283,-1875.35,0.0001178,2]
[323552195,1714083060291,-615.58,0.0001178,2]
[323552196,1714083060301,-562.29,0.0001178,2]
[323552197,1714083060310,-500.0,0.0001178,2]
[323552198,1714083060319,-511.43,0.0001178,2]
[323552199,1714083060329,-2210.58,0.0001178,2]
[323552200,1714083060338,-1339.95,0.0001178,2]
[323552201,1714083060347,-1145.16,0.0001178,2]
[323552202,1714083060357,-1548.68,0.0001178,2]
[323552203,1714083060366,-662.07,0.0001178,2]
[323552204,1714083060375,-500.0,0.0001178,2]
[323552205,1714083060384,-1723.14,0.0001178,2]
[323552206,1714083060394,-7358.84,0.0001178,2]
[323552207,1714083060405,-500.0,0.0001178,2]
[323552208,1714083060415,-1127.16,0.0001178,2]
[323552209,1714083060424,-500.0,0.0001178,2]
[323552210,1714083060433,-500.0,0.0001178,2]
[323552211,1714083060442,-500.0,0.0001178,2]
[323552212,1714083060451,-500.0,0.0001178,2]
[323552213,1714083060461,-1040.93,0.0001178,2]
[323552214,1714083060470,-700.73,0.0001178,2]
[323552215,1714083060479,-2743.66,0.0001178,2]
[323552216,1714083060488,-4515.82,0.0001178,2]
[323552217,1714083060498,-714.2,0.0001178,2]
[323552218,1714083060507,-790.76,0.0001178,2]
[323552219,1714083060518,-658.21,0.0001178,2]
[323552220,1714083060527,-500.0,0.0001178,2]
[323552221,1714083060537,-500.0,0.0001178,2]
[323552222,1714083060547,-500.0,0.0001178,2]
[323552223,1714083060557,-3104.49,0.0001178,2]
[323552224,1714083060567,-570.45,0.0001178,2]
[323552225,1714083060576,-500.0,0.0001178,2]
[323552226,1714083060585,-500.0,0.0001178,2]
[323552227,1714083060594,-500.0,0.0001178,2]
[323552228,1714083060603,-500.0,0.0001178,2]
[323552229,1714083060613,-500.0,0.0001178,2]
[323552230,1714083060623,-3680.57,0.0001178,2]
[323552231,1714083060632,-2686.93,0.0001178,2]
[323552232,1714083060643,-611.59471686,0.0001178,2]
[323552233,1714083060653,-500.0,0.0001178,2]
[323552234,1714083060663,-5186.5,0.0001178,2]
[323552235,1714083060673,-1039.85,0.0001178,2]
[323552236,1714083060682,-500.0,0.0001178,2]
[323552237,1714083060692,-500.0,0.0001178,2]
[323552238,1714083060701,-725.97,0.0001178,2]
[323552239,1714083060710,-917.57,0.0001178,2]
[323552240,1714083060719,-500.0,0.0001178,2]
[323552241,1714083060729,-795.73,0.0001178,2]
[323552242,1714083060738,-1010.42,0.0001178,2]
[323552243,1714083060748,-500.0,0.0001178,2]
[323552244,1714083060757,-500.0,0.0001178,2]
[323552245,1714083060766,-1037.26,0.0001178,2]
[323552246,1714083060776,-552.96,0.0001178,2]
[323552247,1714083060785,-778.46,0.0001178,2]
[323552248,1714083060795,-668.22,0.0001178,2]
[323552249,1714083060938,-898.24,0.0001178,2]
[323552250,1714083060948,-500.0,0.0001178,2]
[323552251,1714083060957,-572.50133204,0.0001178,2]
[323552252,1714083060967,-971.61,0.0001178,2]
[323552253,1714083060976,-1127.54,0.0001178,2]
[323552254,1714083060985,-3470.52,0.0001178,2]
[323552255,1714083060995,-581.59,0.0001178,2]
[323552256,1714083061003,-500.0,0.0001178,2]
[323552257,1714083061013,-500.0,0.0001178,2]
[323552258,1714083061023,-674.08,0.0001178,2]
[323552259,1714083061032,-500.0,0.0001178,2]
[323552260,1714083061042,-500.0,0.0001178,2]
[323552261,1714083061051,-852.19,0.0001178,2]
[323552262,1714083061060,-500.0,0.0001178,2]
[323552263,1714083061069,-500.0,0.0001178,2]
[323552264,1714083061079,-500.0,0.0001178,2]
[323552265,1714083061089,-2122.83,0.0001178,2]
[323552266,1714083061098,-2163.26,0.0001178,2]
[323552267,1714083061107,-500.0,0.0001178,2]
[323552268,1714083061117,-640.52,0.0001178,2]
[323552269,1714083061126,-725.95,0.0001178,2]
[323552270,1714083061135,-500.0,0.0001178,2]
[323552271,1714083061145,-1620.34,0.0001178,2]
[323552272,1714083061154,-1852.2,0.0001178,2]
[323552273,1714083061164,-500.0,0.0001178,2]
[323552274,1714083061174,-1722.18,0.0001178,2]
[323552275,1714083061184,-856.9,0.0001178,2]
[323552276,1714083061193,-549.11,0.0001178,2]
[323552277,1714083061204,-2825.86,0.0001178,2]
[323552278,1714083061214,-500.0,0.0001178,2]
[323552279,1714083061224,-500.0,0.0001178,2]
[323552280,1714083061233,-454.93201579,0.0001178,2]
[323552281,1714083061245,-500.0,0.0001178,2]
[323552282,1714083061255,-500.0,0.0001178,2]
[323552283,1714083061264,-500.0,0.0001178,2]
[323552284,1714083061273,-500.0,0.0001178,2]
[323552285,1714083061282,-500.0,0.0001178,2]
[323552286,1714083061292,-500.0,0.0001178,2]
[323552287,1714083061301,-1442.76,0.0001178,2]
[323552288,1714083061310,-771.92,0.0001178,2]
[323552289,1714083061320,-500.0,0.0001178,2]
[323552290,1714083061329,-500.0,0.0001178,2]
[323552291,1714083061338,-3376.2,0.0001178,2]
[323552292,1714083061348,-856.46,0.0001178,2]
[323552293,1714083061357,-500.0,0.0001178,2]
[323552294,1714083061366,-500.0,0.0001178,2]
[323552295,1714083061376,-3976.97,0.0001178,2]
[323552296,1714083061385,-842.44,0.0001178,2]
[323552297,1714083061394,-500.0,0.0001178,2]
[323552298,1714083061406,-500.0,0.0001178,2]
[323552299,1714083061416,-500.0,0.0001178,2]
[323552300,1714083061425,-500.0,0.0001178,2]
[323552301,1714083061435,-548.36,0.0001178,2]
[323552302,1714083061445,-5508.73,0.0001178,2]
[323552303,1714083061455,-316.75,0.0001178,2]
[323552304,1714083061464,-995.07,0.0001178,2]
[323552305,1714083061473,-1255.4,0.0001178,2]
[323552306,1714083061482,-539.19,0.0001178,2]
[323552307,1714083061491,-526.5,0.0001178,2]
[323552308,1714083061504,-500.0,0.0001178,2]
[323552309,1714083061514,-694.57,0.0001178,2]
[323552310,1714083061523,-500.0,0.0001178,2]
[323552311,1714083061532,-500.0,0.0001178,2]
[323552312,1714083061542,-500.0,0.0001178,2]
[323552313,1714083061552,-500.0,0.0001178,2]
[323552314,1714083061562,-500.0,0.0001178,2]
[323552315,1714083061571,-500.0,0.0001178,2]
[323552316,1714083061581,-2285.23,0.0001178,2]
[323552317,1714083061590,-500.0,0.0001178,2]
[323552318,1714083061599,-500.0,0.0001178,2]
[323552319,1714083061608,-500.0,0.0001178,2]
[323552320,1714083061618,-1247.29,0.0001178,2]
[323552321,1714083061627,-500.0,0.0001178,2]
[323552322,1714083061637,-17708.84,0.0001178,2]
[323552323,1714083061649,-1103.54,0.0001178,2]
[323552324,1714083061659,-500.0,0.0001178,2]
[323552325,1714083061669,-500.0,0.0001178,2]
[323552326,1714083061679,-500.0,0.0001178,2]
[323552327,1714083061688,-500.0,0.0001178,2]
[323552328,1714083061698,-150.0,0.00011781,2]
[323552329,1714083061708,-150.0,0.00011785,2]
[323552330,1714083061718,-150.0,0.00011785,2]
[323552331,1714083061728,-150.0,0.00011786,2]
[323552332,1714083061737,-150.0,0.00011786,2]
[323552333,1714083061746,-264.61020887,0.0001179,2]
[323552334,1714083061756,-150.0,0.00011791,2]
[323552335,1714083061765,-150.0,0.00011791,2]
[323552336,1714083061775,-150.0,0.00011799,2]
[323552337,1714083061785,-202.59003701,0.000118,2]
[323552338,1714083061794,-1000.0,0.000118,2]
[323552339,1714083061804,-400.0,0.000118,4]
[323552340,1714083061813,-150.0,0.00011801,2]
[323552341,1714083061823,-150.0,0.00011802,2]
[323552342,1714083061832,-150.0,0.00011802,2]
[323552343,1714083061841,-150.0,0.00011805,2]
[323552344,1714083061851,-150.0,0.00011805,2]
[323552345,1714083061861,-150.0,0.00011807,2]
[323552346,1714083061872,-474.57763496,0.00011808,2]
[323552347,1714083061881,-150.0,0.00011812,2]
[323552348,1714083061890,-150.0,0.00011813,2]
[323552349,1714083061899,-150.0,0.00011813,2]
[323552350,1714083061909,-4027.82265718,0.00011813,2]
[323552351,1714083061919,-150.0,0.00011817,2]
[323552352,1714083061928,-150.0,0.0001182,2]
[323552353,1714083061937,-150.0,0.00011828,2]
[323552354,1714083061946,-150.0,0.00011829,2]
[323552355,1714083061955,-150.0,0.0001183,2]
[323552356,1714083061965,-150.0,0.00011832,2]
[323552357,1714083061973,-150.0,0.00011833,2]
[323552358,1714083061982,-150.0,0.0001184,2]
[323552359,1714083061991,-150.0,0.00011844,2]
[323552360,1714083062000,-264.61020887,0.00011845,2]
[323552361,1714083062009,-150.0,0.00011846,2]
[323552362,1714083062018,-150.0,0.00011848,2]
[323552363,1714083062027,-202.59003701,0.0001185,2]
[323552364,1714083062036,-150.0,0.00011851,2]
[323552365,1714083062045,-150.0,0.00011852,2]
[323552366,1714083062054,-150.0,0.00011854,2]
[323552367,1714083062064,-150.0,0.00011857,2]
[323552368,1714083062073,-150.0,0.0001186,2]
[323552369,1714083062081,-150.0,0.00011862,2]
[323552370,1714083062091,-257.48638318,0.00011862,2]
[323552371,1714083062100,-150.0,0.00011863,2]
[323552372,1714083062109,-150.0,0.00011866,2]
[323552373,1714083062118,-150.0,0.00011869,2]
[323552374,1714083062127,-150.0,0.00011872,2]
[323552375,1714083062137,-150.0,0.00011875,2]
[323552376,1714083062145,-150.0,0.00011876,2]
[323552377,1714083062155,-172.68675682,0.0001188,2]
[323552378,1714083062164,-3000.0,0.0001188,2]
[323552379,1714083062173,-150.0,0.00011881,2]
[323552380,1714083062182,-938.65,0.00011883,2]
[323552381,1714083062191,-903.86,0.00011883,2]
[323552382,1714083062200,-910.54,0.00011883,2]
[323552383,1714083062209,-910.54,0.00011883,2]
[323552384,1714083062219,-363.16,0.00011883,2]
[323552385,1714083062228,-150.0,0.00011885,2]
[323552386,1714083062237,-150.0,0.00011885,2]
[323552387,1714083062251,-150.0,0.00011887,2]
[323552388,1714083062261,-150.0,0.00011888,2]
[323552389,1714083062271,-150.0,0.0001189,2]
[323552390,1714083062280,-150.0,0.00011896,2]
[323552391,1714083062290,-56347.88588505,0.000119,2]
[323552392,1714083062299,-10000.0,0.000119,2]
[323552393,1714083062308,-50941.80127125,0.000119,2]
[323552394,1714083062317,-160942.10120523,0.000119,2]
[323552395,1714083062346,-84057.89879477,0.000119,2]
[323552396,1714083062355,-202.59003701,0.000119,2]
[323552397,1714083062364,-264.61020887,0.000119,2]
[323552398,1714083062373,-607.0,0.000119,2]
[323552399,1714083062382,-400.0,0.000119,4]
[323552400,1714083062391,-1000.0,0.00011903,2]
[323552401,1714083062402,-500.0,0.00011903,2]
[323552402,1714083062411,-1000.0,0.00011904,2]
[323552403,1714083062422,-1000.0,0.00011904,2]
[323552404,1714083062431,-500.0,0.00011904,2]
[323552405,1714083062441,-500.0,0.00011904,2]
[323552406,1714083062451,-209.85536267,0.00011905,2]
[323552407,1714083062460,-1667.16113497,0.00011906,2]
[323552408,1714083062469,-7750.96230258,0.00011906,2]
[323552409,1714083062478,-155.59502717,0.00011906,2]
[323552410,1714083062487,-469.37478401,0.00011906,2]
[323552411,1714083062496,-214.02042905,0.00011906,2]
[323552412,1714083062505,-289.10427307,0.00011906,2]
[323552413,1714083062514,-164.3711199,0.00011906,2]
[323552414,1714083062524,-199.73636096,0.00011906,2]
[323552415,1714083062534,-373.08888699,0.00011906,2]
[323552416,1714083062543,-156.22471055,0.00011906,2]
[323552417,1714083062552,-150.0,0.00011906,2]
[323552418,1714083062562,-3675.36120902,0.00011907,2]
[323552419,1714083062572,-1106427.25823016,0.00011907,2]
[323552420,1714083062595,-450.14009284,0.00011907,2]
[323552421,1714083062606,-6328.75319065,0.00011907,2]
[323552422,1714083062625,-366.83172432,0.00011907,2]
[323552423,1714083063054,-5863.64,0.00010958,2]
[323552424,1714083063064,-5863.64,0.00011232,2]
[323552425,1714083063074,-3272.72,0.00011506,2]
[323552426,1714083063087,-2590.92,0.00011506,2]
[323552427,1714083063096,-4485.48798514,0.0001178,2]
[323552428,1714083063112,-1378.15201486,0.0001178,2]
[323552429,1714083063121,-8340.80208982,0.00011907,2]
[323552430,1714083063132,-139252.30883277,0.00011907,2]
[323552431,1714083063144,-426137.59803115,0.00011907,2]
[323552432,1714083063162,-591.65,0.00011907,2]
[323552433,1714083063173,-790.76829777,0.00011907,2]
[323552434,1714083063495,-500.0,0.00010958,2]
[323552435,1714083063504,-500.0,0.00011232,2]
[323552436,1714083063513,-500.0,0.00011506,2]
[323552437,1714083063523,-609.13,0.0001178,2]
[323552438,1714083063532,-0.663665,0.00011907,2]
[323552439,1714083063543,-332.00402996,0.00011907,2]
[323552440,1714083063559,-2085.46216407,0.00011907,2]
[323552442,1714083069635,-450.14009284,0.00010958,2]
[323552448,1714083367300,150.0,8.219e-05,2]
[323552449,1714083367323,661.97,8.219e-05,2]
[323552450,1714083483999,99155.3302933,8.219e-05,2]
[323552451,1714083484026,447190.50614707,8.219e-05,2]
[323552452,1714083502019,546345.83644037,8.219e-05,2]
[323552453,1714083510239,156.28,8.219e-05,2]
[323552454,1714083524006,546378.5668515,8.219e-05,2]
[323552455,1714083582769,866.55039415,8.219e-05,2]
[323552456,1714083588323,155.12499905,8.219e-05,2]
[323552457,1714083598805,866.55039415,8.219e-05,2]
[323552458,1714083620762,866.55039415,8.219e-05,2]
[323552459,1714083637300,186.73254449,8.219e-05,2]
[323552460,1714083937395,1365.9662063,0.0002375,60]
[323552461,1714083946165,771.37,8.219e-05,2]
[323552463,1714084086577,156.28,8.219e-05,2]
[323552464,1714084086851,500.0,9.5e-05,2]
[323552494,1714084232312,-155.0,9.682e-05,2]
[323552496,1714084232322,-171.97,9.683e-05,2]
[323552498,1714084232331,-363.32156126,9.775e-05,2]
[323552499,1714084232341,-250.0,9.779e-05,2]
[323552500,1714084232350,-459.70843874,9.802e-05,2]
[323552501,1714084232361,-359.60866126,9.802e-05,2]
[323552502,1714084232370,-10569.49520834,9.845e-05,2]
[323552503,1714084232379,-1414.46,9.846e-05,2]
[323552504,1714084232389,-534.08718913,9.899e-05,2]
[323552505,1714084232399,-500.0,9.903e-05,2]
[323552506,1714084232408,-698.82287915,9.903e-05,2]
[323552507,1714084232420,-23191.17712085,9.903e-05,2]
[323552508,1714084232429,-1000.0,9.956e-05,2]
[323552509,1714084232439,-1000.0,9.962e-05,2]
[323552510,1714084232448,-499.99,9.962e-05,2]
[323552511,1714084232457,-159.82,0.00010048,2]
[323552512,1714084232466,-18652.35,0.0001009,2]
[323552513,1714084232476,-150.0,0.00010332,2]
[323552514,1714084232485,-169.54,0.00010462,2]
[323552515,1714084232494,-771.37,0.0001047,2]
[323552516,1714084232503,-150.99,0.00010477,2]
[323552517,1714084232512,-400.0,0.000106,3]
[323552518,1714084232522,-900.0,0.000107,3]
[323552519,1714084232531,-330.24547727,0.00010756,2]
[323552520,1714084232540,-218.22894187,0.00010757,2]
[323552521,1714084232550,-6317.89638428,0.00010757,2]
[323552522,1714084232559,-337.05222215,0.00010758,2]
[323552523,1714084232568,-300.0159871,0.00010758,2]
[323552524,1714084232577,-1300.0,0.000108,3]
[323552525,1714084232587,-330.24547726,0.0001085,2]
[323552527,1714084232598,-1993.21324358,0.00010854,2]
[323552528,1714084232607,-247.91228041,0.00010854,2]
[323552529,1714084232616,-5544.53670484,0.00010854,2]
[323552530,1714084232625,-483.30142374,0.00010854,2]
[323552531,1714084232634,-155.71921729,0.00010854,2]
[323552532,1714084232645,-207.08240678,0.00010854,2]
[323552534,1714084232655,-155.0,0.00010854,2]
[323552536,1714084232664,-2023.05761895,0.00010854,2]
[323552538,1714084232675,-279.14054832,0.00010854,2]
[323552539,1714084232684,-524.24692514,0.00010854,2]
[323552540,1714084232694,-155.0,0.00010854,2]
[323552541,1714084232702,-192.84167632,0.00010854,2]
[323552542,1714084232712,-453.61585099,0.00010854,2]
[323552543,1714084232720,-15990.77799406,0.00010855,2]
[323552544,1714084232729,-632.01160907,0.00010855,2]
[323552545,1714084232739,-155.36235237,0.00010855,2]
[323552546,1714084232748,-155.76651167,0.00010855,2]
[323552547,1714084232757,-407.61661465,0.00010855,2]
[323552548,1714084232766,-305.25449563,0.00010855,2]
[323552549,1714084232776,-325.54755976,0.00010855,2]
[323552550,1714084232785,-236.6335643,0.00010855,2]
[323552551,1714084232795,-507923.84354335,0.00010856,2]
[323552552,1714084232806,-178127.57934363,0.00010856,2]
[323552553,1714084232815,-2199.44546475,0.00010856,2]
[323552554,1714084232826,-5000.0,0.00010856,2]
[323552555,1714084232838,-4386.35969042,0.00010856,2]
[323552556,1714084232879,-7499.09084483,0.00010856,2]
[323552557,1714084232888,-5934.84898281,0.00010857,2]
[323552558,1714084232900,-3971.07024,0.00010857,2]
[323552559,1714084232920,-1255.57432,0.00010857,2]
[323552560,1714084232931,-1391.8501599,0.00010857,2]
[323552561,1714084232957,-339.7200004,0.00010857,2]
[323552562,1714084232968,-256.4326,0.00010857,2]
[323552563,1714084232980,-1030.80826547,0.00010857,2]
[323552564,1714084233007,-6900.0,0.00010857,2]
[323552565,1714084233019,-60.72683142,0.00010857,2]
[323552566,1714084233028,-302.87316858,0.00010857,2]
[323552567,1714084233038,-325.09234905,0.00010857,2]
[323552568,1714084233049,-2529.27565498,0.00010857,2]
[323552572,1714084238255,-10805.21955368,0.00010857,2]
[323552573,1714084238320,-231037.53927371,0.00010857,2]
[323552574,1714084238329,-2398.2696,0.00010857,2]
[323552575,1714084238339,-100000.0,0.00010858,2]
[323552576,1714084238348,-10000.0,0.00010858,2]
[323552577,1714084238358,-1800.0,0.000109,3]
[323552578,1714084238367,-330.24547726,0.00010944,2]
[323552579,1714084238377,-6317.8963842,0.00010952,2]
[323552580,1714084238386,-247.6312833,0.00010955,2]
[323552581,1714084238396,-209.85536267,0.00010956,2]
[323552582,1714084238406,-935.56783197,0.00010956,2]
[323552583,1714084238415,-289.10427307,0.00010956,2]
[323552584,1714084238424,-199.73636096,0.00010956,2]
[323552585,1714084238434,-214.02042905,0.00010956,2]
[323552586,1714084238443,-164.3711199,0.00010956,2]
[323552587,1714084238453,-1667.16113497,0.00010957,2]
[323552588,1714084238462,-408.61554877,0.00010958,2]
[323552589,1714084238471,-500.0,0.00010958,2]
[323552590,1714084238481,-500.0,0.00010958,2]
[323552591,1714084238490,-500.0,0.00010958,2]
[323552592,1714084238502,-500.0,0.00010958,2]
[323552593,1714084238512,-500.0,0.00010958,2]
[323552594,1714084238521,-500.0,0.00010958,2]
[323552595,1714084238531,-500.0,0.00010958,2]
[323552596,1714084238541,-1131.68,0.00010958,2]
[323552597,1714084238550,-500.0,0.00010958,2]
[323552598,1714084238560,-1172.26,0.00010958,2]
[323552599,1714084238569,-999.26,0.00010958,2]
[323552600,1714084238579,-500.0,0.00010958,2]
[323552601,1714084238588,-500.0,0.00010958,2]
[323552603,1714084238600,-500.0,0.00010958,2]
[323552605,1714084238611,-500.0,0.00010958,2]
[323552607,1714084238621,-500.0,0.00010958,2]
[323552609,1714084238630,-500.0,0.00010958,2]
[323552611,1714084238639,-500.0,0.00010958,2]
[323552613,1714084238649,-500.0,0.00010958,2]
[323552615,1714084238660,-500.0,0.00010958,2]
[323552617,1714084238669,-500.0,0.00010958,2]
[323552619,1714084238678,-500.0,0.00010958,2]
[323552620,1714084238687,-500.0,0.00010958,2]
[323552621,1714084238698,-500.0,0.00010958,2]
[323552623,1714084238707,-500.0,0.00010958,2]
[323552624,1714084238716,-500.0,0.00010958,2]
[323552625,1714084238725,-500.0,0.00010958,2]
[323552626,1714084238735,-500.0,0.00010958,2]
[323552627,1714084238745,-500.0,0.00010958,2]
[323552628,1714084238754,-500.0,0.00010958,2]
[323552629,1714084238764,-500.0,0.00010958,2]
[323552630,1714084238774,-500.0,0.00010958,2]
[323552631,1714084238783,-500.0,0.00010958,2]
[323552632,1714084238792,-500.0,0.00010958,2]
[323552633,1714084238802,-500.0,0.00010958,2]
[323552634,1714084238811,-500.0,0.00010958,2]
[323552635,1714084238821,-500.0,0.00010958,2]
[323552636,1714084238830,-500.0,0.00010958,2]
[323552637,1714084238840,-500.0,0.00010958,2]
[323552638,1714084238849,-1032.67,0.00010958,2]
[323552639,1714084238859,-500.0,0.00010958,2]
[323552640,1714084238868,-500.0,0.00010958,2]
[323552641,1714084238878,-500.0,0.00010958,2]
[323552642,1714084238887,-500.0,0.00010958,2]
[323552643,1714084238897,-500.0,0.00010958,2]
[323552644,1714084238907,-500.0,0.00010958,2]
[323552645,1714084238916,-500.0,0.00010958,2]
[323552646,1714084238926,-500.0,0.00010958,2]
[323552647,1714084238935,-500.0,0.00010958,2]
[323552648,1714084238944,-500.0,0.00010958,2]
[323552649,1714084238954,-1048.16,0.00010958,2]
[323552650,1714084238963,-500.0,0.00010958,2]
[323552651,1714084238973,-500.0,0.00010958,2]
[323552652,1714084238983,-500.0,0.00010958,2]
[323552653,1714084238992,-500.0,0.00010958,2]
[323552654,1714084239001,-500.0,0.00010958,2]
[323552655,1714084239010,-500.0,0.00010958,2]
[323552656,1714084239020,-500.0,0.00010958,2]
[323552657,1714084239029,-500.0,0.00010958,2]
[323552658,1714084239039,-500.0,0.00010958,2]
[323552659,1714084239048,-500.0,0.00010958,2]
[323552660,1714084239057,-500.0,0.00010958,2]
[323552661,1714084239067,-500.0,0.00010958,2]
[323552662,1714084239076,-500.0,0.00010958,2]
[323552663,1714084239085,-334.93050008,0.00010958,2]
[323552664,1714084239095,-500.0,0.00010958,2]
[323552665,1714084239105,-500.0,0.00010958,2]
[323552666,1714084239114,-500.0,0.00010958,2]
[323552667,1714084239124,-500.0,0.00010958,2]
[323552668,1714084239134,-500.0,0.00010958,2]
[323552669,1714084239143,-500.0,0.00010958,2]
[323552670,1714084239154,-500.0,0.00010958,2]
[323552671,1714084239163,-500.0,0.00010958,2]
[323552672,1714084239172,-500.0,0.00010958,2]
[323552673,1714084239182,-500.0,0.00010958,2]
[323552674,1714084239192,-500.0,0.00010958,2]
[323552675,1714084239201,-500.0,0.00010958,2]
[323552676,1714084239210,-500.0,0.00010958,2]
[323552677,1714084239220,-500.0,0.00010958,2]
[323552678,1714084239230,-500.0,0.00010958,2]
[323552679,1714084239240,-1072.59,0.00010958,2]
[323552680,1714084239249,-500.0,0.00010958,2]
[323552681,1714084239258,-500.0,0.00010958,2]
[323552682,1714084239269,-500.0,0.00010958,2]
[323552683,1714084239279,-500.0,0.00010958,2]
[323552684,1714084239288,-500.0,0.00010958,2]
[323552685,1714084239298,-500.0,0.00010958,2]
[323552686,1714084239308,-500.0,0.00010958,2]
[323552687,1714084239317,-500.0,0.00010958,2]
[323552688,1714084239328,-500.0,0.00010958,2]
[323552689,1714084239338,-500.0,0.00010958,2]
[323552690,1714084239347,-293.81856386,0.00010958,2]
[323552691,1714084239356,-500.0,0.00010958,2]
[323552692,1714084239365,-500.0,0.00010958,2]
[323552693,1714084239374,-500.0,0.00010958,2]
[323552694,1714084239384,-500.0,0.00010958,2]
[323552695,1714084239393,-500.0,0.00010958,2]
[323552696,1714084239404,-500.0,0.00010958,2]
[323552697,1714084239413,-500.0,0.00010958,2]
[323552698,1714084239422,-500.0,0.00010958,2]
[323552699,1714084239432,-500.0,0.00010958,2]
[323552700,1714084239441,-433.33363835,0.00010958,2]
[323552701,1714084239450,-500.0,0.00010958,2]
[323552702,1714084239458,-468.56,0.00010958,2]